bitfinex-derivatives/quotes_BTCF0:USTF0_20240814
["timestamp","ask_amount","ask_price","bid_price","bid_amount"]
[1723672446233,0.12,58984.0,58983.0,0.32669318]
[1723672446422,0.12,58984.0,58983.0,0.32769318]
[1723672448430,0.12,58984.0,58983.0,0.24569318]
[1723672449029,0.12,58984.0,58983.0,0.32769318]
[1723672449231,0.12,58984.0,58983.0,0.24569318]
[1723672449430,0.12,58984.0,58983.0,0.32769318]
[1723672454639,0.12,58984.0,58983.0,0.73906205]
[1723672454845,0.12,58984.0,58983.0,0.73905599]
[1723672455538,0.12,58984.0,58983.0,0.47536188]
[1723672455737,0.12,58984.0,58983.0,0.73905245]
[1723672455927,0.12,58984.0,58983.0,0.47536188]
[1723672456441,0.12,58984.0,58983.0,0.65986064]
[1723672457841,0.12,58984.0,58983.0,0.92355092]
[1723672458927,0.12,58984.0,58983.0,0.92354876]
[1723672459335,0.12,58984.0,58983.0,0.65985849]
[1723672459537,0.12,58984.0,58983.0,0.92354876]
[1723672460138,0.12,58984.0,58983.0,0.84065629]
[1723672460339,0.37093239,58988.0,58987.0,0.084752]
[1723672460534,0.49093239,58988.0,58987.0,0.254752]
[1723672461039,0.4808,58988.0,58987.0,0.480552]
[1723672464444,0.4808,58988.0,58987.0,0.403852]
[1723672464939,0.12,58988.0,58987.0,0.403852]
[1723672465144,0.4808,58988.0,58987.0,0.403852]
[1723672465443,0.4808,58988.0,58987.0,0.55151332]
[1723672465838,0.12,58988.0,58987.0,0.63351332]
[1723672466339,0.12,58988.0,58987.0,0.485852]
[1723672466539,0.12,58988.0,58987.0,0.72284875]
[1723672466840,0.12,58988.0,58987.0,0.72285006]
[1723672468339,0.12,58988.0,58987.0,0.57518943]
[1723672469448,0.12,58988.0,58987.0,0.72285317]
[1723672470041,0.12,58988.0,58987.0,0.57518943]
[1723672470244,0.12,58988.0,58987.0,0.82441093]
[1723672470550,0.12,58988.0,58987.0,0.72284711]
[1723672471238,0.12,58988.0,58987.0,0.82441093]
[1723672472241,0.12,58988.0,58987.0,0.92427641]
[1723672472642,0.12,58988.0,58987.0,1.1879418]
[1723672472847,0.00025422,58989.0,58988.0,0.08475]
[1723672473045,0.12025422,58989.0,58988.0,0.83527598]
[1723672473440,0.12025422,58989.0,58988.0,0.57161059]
[1723672473642,0.12025422,58989.0,58988.0,0.42395291]
[1723672473849,0.12025422,58989.0,58988.0,0.57160524]
[1723672474147,0.12025422,58989.0,58988.0,0.47173976]
[1723672474351,0.12025422,58989.0,58988.0,0.65979599]
[1723672474746,0.00025422,58989.0,58988.0,0.65979599]
[1723672476543,0.00025422,58989.0,58988.0,1.02059599]
[1723672477445,0.00025422,58989.0,58988.0,1.02059578]
[1723672477646,0.00025422,58989.0,58988.0,0.87294366]
[1723672477853,0.00025422,58989.0,58988.0,1.02059578]
[1723672478854,0.00025422,58989.0,58988.0,0.93125835]
[1723672479554,0.00025422,58989.0,58988.0,0.93153744]
[1723672480858,0.09025422,58989.0,58988.0,0.93153744]
[1723672481155,0.09025422,58989.0,58988.0,0.93153834]
[1723672484955,0.09025422,58989.0,58988.0,0.78388532]
[1723672485358,0.09025422,58989.0,58988.0,0.93153834]
[1723672485749,0.09025422,58989.0,58988.0,1.19520445]
[1723672485958,0.09025422,58989.0,58988.0,0.93153834]
[1723672486854,0.09025422,58989.0,58988.0,0.83193131]
[1723672487164,0.17500322,58989.0,58988.0,0.93175233]
[1723672487456,0.25700322,58989.0,58988.0,0.57095233]
[1723672488649,0.25700322,58989.0,58988.0,0.42329931]
[1723672489162,0.25700322,58989.0,58988.0,0.32347829]
[1723672489959,0.26682877,58989.0,58988.0,0.32347829]
[1723672492263,0.26682877,58989.0,58988.0,0.23872829]
[1723672493157,0.35157777,58989.0,58988.0,0.23872829]
[1723672499364,0.35157777,58989.0,58988.0,0.15]
[1723672501358,0.86013777,58989.0,58988.0,0.15]
[1723672501567,0.86013777,58989.0,58984.0,0.084755]
[1723672501568,0.084754,58985.0,58984.0,0.084755]
[1723672501755,0.214754,58985.0,58984.0,0.224755]
[1723672508669,0.214754,58985.0,58984.0,0.14]
[1723672509774,0.214754,58985.0,58984.0,0.22966569]
[1723672515592,1.168908,58985.0,58984.0,0.22966569]
[1723672515789,0.169512,58984.0,58983.0,0.1015821]
[1723672515990,0.880112,58984.0,58983.0,0.1015821]
[1723672516295,0.084764,58978.0,58974.0,0.1184415]
[1723672516485,0.973138,58975.0,58974.0,0.05270129]
[1723672516678,1.093138,58975.0,58974.0,0.04582929]
[1723672516992,1.601818,58975.0,58974.0,0.04582929]
[1723672517494,0.16955,58971.0,58970.0,0.05081576]
[1723672517693,0.084776,58970.0,58969.0,0.05106998]
[1723672517883,0.555576,58970.0,58969.0,0.05106998]
[1723672518083,1.149072,58970.0,58969.0,0.00025422]
[1723672518690,0.640352,58970.0,58969.0,0.00025422]
[1723672519594,0.65011098,58970.0,58969.0,0.00025422]
[1723672520594,0.65011098,58970.0,58969.0,0.01425422]
[1723672520988,0.65011098,58970.0,58969.0,0.02825422]
[1723672527900,0.28931098,58970.0,58969.0,0.02825422]
[1723672530397,0.28931098,58970.0,58969.0,0.17825422]
[1723672530398,0.20453498,58970.0,58969.0,0.17825422]
[1723672530600,0.28653498,58970.0,58969.0,0.17825422]
[1723672532003,0.276776,58970.0,58969.0,0.17825422]
[1723672535405,0.276776,58970.0,58969.0,0.26303122]
[1723672536708,0.11,58970.0,58969.0,0.34503122]
[1723672537900,0.11,58970.0,58969.0,0.26303122]
[1723672545209,0.11,58970.0,58969.0,0.34947465]
[1723672550010,0.11,58970.0,58969.0,0.34937848]
[1723672551709,0.194776,58970.0,58969.0,0.34937848]
[1723672553818,0.194776,58970.0,58969.0,0.43404438]
[1723672555013,0.194776,58970.0,58969.0,0.34937848]
[1723672555315,0.194776,58970.0,58969.0,0.4340483]
[1723672555522,0.194776,58970.0,58969.0,0.34937848]
[1723672559419,0.194776,58970.0,58969.0,0.26303122]
[1723672569122,0.194776,58970.0,58969.0,0.24903122]
[1723672569327,0.194776,58970.0,58969.0,0.25903122]
[1723672569629,0.194776,58970.0,58969.0,0.3456982]
[1723672575021,0.194776,58970.0,58969.0,0.2609212]
[1723672575321,0.194776,58970.0,58969.0,0.40863528]
[1723672579134,0.194776,58970.0,58969.0,0.2609212]
[1723672580225,0.194776,58970.0,58969.0,0.2599212]
[1723672581432,0.194776,58970.0,58969.0,0.2479212]
[1723672581621,0.194776,58970.0,58969.0,0.2589212]
[1723672582226,0.194776,58970.0,58969.0,0.40663842]
[1723672583137,0.194776,58970.0,58969.0,0.2589212]
[1723672584728,0.245447,58970.0,58969.0,0.34368867]
[1723672585129,0.279552,58970.0,58969.0,0.25702169]
[1723672586034,0.279552,58970.0,58969.0,0.17225422]
[1723672589628,0.330206,58970.0,58969.0,0.17225422]
[1723672593242,0.279552,58970.0,58969.0,0.17225422]
[1723672595831,0.640352,58970.0,58969.0,0.17225422]
[1723672598136,0.640352,58970.0,58969.0,0.02225422]
[1723672605444,0.640352,58970.0,58969.0,0.01125422]
[1723672605646,0.640352,58970.0,58969.0,0.01225422]
[1723672609550,0.16956,58967.0,58966.0,0.08475893]
[1723672609757,0.36156,58967.0,58966.0,0.08475893]
[1723672610050,0.36371695,58967.0,58966.0,0.08475893]
[1723672611449,0.36471695,58967.0,58966.0,0.09375893]
[1723672611646,0.36571695,58967.0,58966.0,0.10275893]
[1723672612341,0.36471695,58967.0,58966.0,0.09375893]
[1723672612548,0.36571695,58967.0,58966.0,0.09875893]
[1723672618340,0.37574127,58967.0,58966.0,0.09875893]
[1723672620154,0.65176127,58967.0,58966.0,0.09875893]
[1723672621353,0.65176127,58967.0,58966.0,0.08176799]
[1723672626161,0.71929193,58967.0,58966.0,0.08176799]
[1723672627656,0.65176127,58967.0,58966.0,0.014]
[1723672635968,0.73654127,58967.0,58966.0,0.014]
[1723672636155,0.65176127,58967.0,58966.0,0.014]
[1723672636964,0.73654127,58967.0,58966.0,0.014]
[1723672637362,0.084786,58963.0,58962.0,0.1435]
[1723672637558,0.5528,58963.0,58953.0,0.11865529]
[1723672637763,0.166799,58954.0,58953.0,0.11865529]
[1723672637966,0.286799,58954.0,58953.0,0.11865529]
[1723672638171,0.30190169,58954.0,58953.0,0.11865529]
[1723672638668,0.21990169,58954.0,58953.0,0.11865529]
[1723672639059,0.30190169,58954.0,58953.0,0.11865529]
[1723672639665,0.30190169,58954.0,58953.0,0.13065529]
[1723672639865,0.30290169,58954.0,58953.0,0.14265529]
[1723672640260,0.30390169,58954.0,58953.0,0.14265529]
[1723672640460,0.66470169,58954.0,58953.0,0.14265529]
[1723672641968,0.67450667,58954.0,58953.0,0.14265529]
[1723672642664,0.67450667,58954.0,58953.0,0.13965529]
[1723672642865,0.67450667,58954.0,58953.0,0.13665529]
[1723672643769,0.59250667,58954.0,58953.0,0.13665529]
[1723672643970,0.67450667,58954.0,58953.0,0.13665529]
[1723672647063,0.0848,58953.0,58952.0,0.08957829]
[1723672647370,0.21271001,58953.0,58952.0,0.08957829]
[1723672647770,0.21271001,58953.0,58952.0,0.23957829]
[1723672649362,0.21371001,58953.0,58952.0,0.24257829]
[1723672649763,0.57451001,58953.0,58952.0,0.24257829]
[1723672649963,0.57551001,58953.0,58952.0,0.24357829]
[1723672651470,0.57451001,58953.0,58952.0,0.24257829]
[1723672651670,0.57551001,58953.0,58952.0,0.24257829]
[1723672651867,0.57451001,58953.0,58952.0,0.23957829]
[1723672652069,0.57551001,58953.0,58952.0,0.24257829]
[1723672652374,0.65751001,58953.0,58952.0,0.24257829]
[1723672653169,0.65751001,58953.0,58952.0,0.24357829]
[1723672660681,0.65751001,58953.0,58952.0,0.29431545]
[1723672662282,0.70804451,58953.0,58952.0,0.24357829]
[1723672662587,0.65751001,58953.0,58952.0,0.24357829]
[1723672669895,0.65751001,58953.0,58952.0,0.0761]
[1723672677292,0.65751001,58953.0,58948.0,0.00025422]
[1723672677505,0.169676,58927.0,58926.0,0.11052652]
[1723672677794,1.41128297,58927.0,58926.0,0.32298815]
[1723672677997,1.41128297,58927.0,58909.0,0.2154]
[1723672677998,0.084855,58915.0,58909.0,0.2154]
[1723672678189,0.084862,58910.0,58909.0,0.2154]
[1723672678385,0.16973,58908.0,58896.0,0.3608]
[1723672678598,0.28973,58908.0,58896.0,0.3608]
[1723672678789,0.85441666,58908.0,58896.0,0.3608]
[1723672678987,1.25441666,58908.0,58896.0,0.3608]
[1723672679186,0.084875,58901.0,58896.0,0.3608]
[1723672679397,0.4808,58901.0,58896.0,0.3608]
[1723672680708,0.4818,58901.0,58896.0,0.3618]
[1723672680891,0.4828,58901.0,58896.0,0.3618]
[1723672681201,0.4828,58901.0,58896.0,0.001]
[1723672681395,0.09934189,58897.0,58896.0,0.001]
[1723672681595,0.20934189,58897.0,58896.0,0.001]
[1723672681900,0.72158463,58897.0,58896.0,0.001]
[1723672682103,0.21222463,58897.0,58896.0,0.001]
[1723672682292,0.10222463,58897.0,58896.0,0.001]
[1723672682991,0.10222463,58897.0,58892.0,0.2154]
[1723672683192,0.4428,58893.0,58892.0,0.2154]
[1723672683587,0.44856608,58893.0,58892.0,0.2154]
[1723672683786,0.36656608,58893.0,58892.0,0.300288]
[1723672683990,0.00576608,58893.0,58892.0,0.809688]
[1723672684202,0.00576608,58893.0,58892.0,0.810688]
[1723672684401,0.082,58895.0,58893.0,0.084886]
[1723672684602,0.082,58895.0,58894.0,0.084885]
[1723672685401,0.08776569,58895.0,58894.0,0.084885]
[1723672686703,0.08876569,58895.0,58894.0,0.085885]
[1723672686893,0.08976569,58895.0,58894.0,0.085885]
[1723672688101,0.08976569,58895.0,58894.0,0.245885]
[1723672688307,0.18976569,58895.0,58894.0,0.245885]
[1723672688699,0.10776569,58895.0,58894.0,0.755285]
[1723672693204,0.10776569,58895.0,58894.0,1.155285]
[1723672693398,0.3608,58901.0,58900.0,0.084877]
[1723672693607,0.01050664,58902.0,58901.0,0.084875]
[1723672693914,0.00244001,58909.0,58906.0,0.084868]
[1723672694211,0.082,58911.0,58906.0,0.316868]
[1723672694512,0.082,58911.0,58906.0,1.226148]
[1723672695309,0.082,58911.0,58910.0,0.084862]
[1723672695504,0.182,58911.0,58910.0,0.234862]
[1723672696507,0.1,58911.0,58910.0,0.234862]
[1723672697015,0.104,58911.0,58910.0,0.373962]
[1723672697715,0.109,58911.0,58910.0,0.373962]
[1723672698312,0.009,58911.0,58910.0,1.283202]
[1723672698708,0.00025468,58912.0,58910.0,1.283202]
[1723672698709,0.00025468,58912.0,58910.0,1.19834]
[1723672698899,0.084842,58924.0,58922.0,0.084845]
[1723672699106,0.082,58923.0,58922.0,0.084845]
[1723672699402,0.194844,58923.0,58922.0,0.084845]
[1723672699608,0.37075385,58925.0,58924.0,0.084842]
[1723672699813,0.3608,58925.0,58924.0,0.234842]
[1723672700115,0.3608,58925.0,58924.0,0.316842]
[1723672700816,0.30315654,58929.0,58928.0,0.084836]
[1723672701009,0.41315654,58929.0,58928.0,0.084836]
[1723672701203,0.40305468,58929.0,58928.0,0.084836]
[1723672702016,0.32105468,58929.0,58928.0,0.084836]
[1723672702214,0.21105468,58929.0,58928.0,0.084836]
[1723672702515,0.21205468,58929.0,58928.0,0.092836]
[1723672703111,0.21205468,58929.0,58928.0,0.091836]
[1723672703612,0.21305468,58929.0,58928.0,0.098836]
[1723672703815,0.21305468,58929.0,58928.0,0.248836]
[1723672704118,0.33305468,58929.0,58928.0,0.248836]
[1723672704513,0.21305468,58929.0,58928.0,0.248836]
[1723672705017,0.21205468,58929.0,58928.0,0.245836]
[1723672705210,0.002,58929.0,58928.0,0.245836]
[1723672706811,0.001,58929.0,58928.0,0.238836]
[1723672707010,0.002,58929.0,58928.0,0.245836]
[1723672707411,0.001,58929.0,58928.0,0.238836]
[1723672707718,0.112,58929.0,58928.0,0.245836]
[1723672707923,0.002,58929.0,58928.0,0.245836]
[1723672708720,0.122,58929.0,58928.0,0.245836]
[1723672709214,0.121,58929.0,58928.0,0.241836]
[1723672709404,0.122,58929.0,58928.0,0.245836]
[1723672709606,0.002,58929.0,58928.0,0.245836]
[1723672709823,0.102,58929.0,58928.0,0.245836]
[1723672711820,0.102,58929.0,58928.0,0.241836]
[1723672711821,0.101,58929.0,58928.0,0.241836]
[1723672712020,0.102,58929.0,58928.0,0.245836]
[1723672712623,0.101,58929.0,58928.0,0.241836]
[1723672712927,0.002,58929.0,58928.0,0.245836]
[1723672713125,0.002,58929.0,58928.0,0.330672]
[1723672714224,0.002,58929.0,58928.0,1.239752]
[1723672714524,0.00025468,58930.0,58929.0,0.16967]
[1723672714711,0.12025468,58930.0,58929.0,1.20955]
[1723672714910,0.12025468,58930.0,58929.0,1.60955]
[1723672715925,0.12125468,58930.0,58929.0,1.61355]
[1723672716327,0.12225468,58930.0,58929.0,1.62055]
[1723672716623,0.12225468,58930.0,58929.0,1.22055]
[1723672716826,0.12225468,58930.0,58929.0,1.62055]
[1723672717917,0.12125468,58930.0,58929.0,0.70647]
[1723672718119,0.12225468,58930.0,58929.0,0.71547]
[1723672718526,0.12125468,58930.0,58929.0,0.70647]
[1723672718721,0.12225468,58930.0,58929.0,0.71547]
[1723672719327,0.00225468,58930.0,58929.0,0.71547]
[1723672720930,0.00225468,58930.0,58929.0,0.629635]
[1723672721132,0.19708768,58930.0,58929.0,0.629635]
[1723672721633,0.20708768,58930.0,58929.0,0.629635]
[1723672721930,0.20708768,58930.0,58929.0,0.711735]
[1723672722131,0.20608768,58930.0,58929.0,0.702735]
[1723672722335,0.20708768,58930.0,58929.0,0.710735]
[1723672724627,0.20708768,58930.0,58929.0,0.709735]
[1723672724933,0.19608768,58930.0,58929.0,0.701735]
[1723672725231,0.11225468,58930.0,58929.0,0.707735]
[1723672726029,0.11225468,58930.0,58929.0,0.625635]
[1723672726228,0.17708768,58930.0,58929.0,0.094835]
[1723672726930,0.17708768,58930.0,58929.0,0.244835]
[1723672727530,0.17608768,58930.0,58929.0,0.240835]
[1723672727732,0.17708768,58930.0,58929.0,0.244835]
[1723672728334,0.17608768,58930.0,58929.0,0.240835]
[1723672728532,0.17608768,58930.0,58929.0,0.16]
[1723672728533,0.17708768,58930.0,58929.0,0.16]
[1723672728729,0.26092068,58930.0,58929.0,0.004]
[1723672728923,0.26192068,58930.0,58929.0,0.012]
[1723672729339,0.084835,58929.0,58928.0,0.08435789]
[1723672729547,0.535635,58929.0,58928.0,0.08435789]
[1723672729829,0.084841,58925.0,58924.0,0.18597092]
[1723672730033,0.084841,58925.0,58924.0,0.35356919]
[1723672730034,0.341782,58925.0,58924.0,0.35356919]
[1723672730229,0.341782,58925.0,58924.0,0.10122947]
[1723672730433,1.250902,58925.0,58924.0,0.10122947]
[1723672730737,0.256941,58925.0,58924.0,0.10122947]
[1723672731127,0.084842,58924.0,58923.0,0.05085145]
[1723672731328,0.214842,58924.0,58923.0,0.05085145]
[1723672732335,0.214842,58924.0,58923.0,0.05185145]
[1723672733235,0.217842,58924.0,58923.0,0.05085145]
[1723672733442,0.222842,58924.0,58923.0,0.05085145]
[1723672733734,0.084848,58920.0,58918.0,0.05079567]
[1723672733931,0.575648,58920.0,58918.0,0.05079567]
[1723672735646,0.577648,58920.0,58918.0,0.05079567]
[1723672735845,0.577648,58920.0,58916.0,0.084854]
[1723672736547,0.576648,58920.0,58919.0,0.00125468]
[1723672737643,0.575648,58920.0,58919.0,0.00325468]
[1723672738353,0.661496,58920.0,58919.0,0.00025468]
[1723672739348,0.746344,58920.0,58919.0,0.00025468]
[1723672739546,0.16971,58915.0,58914.0,0.02300198]
[1723672739753,0.084862,58910.0,58909.0,0.08466069]
[1723672739955,0.545662,58910.0,58909.0,0.08466069]
[1723672741552,0.546662,58910.0,58909.0,0.09166069]
[1723672742446,0.545662,58910.0,58909.0,0.08666069]
[1723672743050,0.545662,58910.0,58909.0,0.08466069]
[1723672743251,0.545662,58910.0,58909.0,0.08566069]
[1723672744561,0.1,58910.0,58909.0,0.31252469]
[1723672745059,0.1,58910.0,58909.0,0.31052469]
[1723672745256,0.101,58910.0,58909.0,0.31052469]
[1723672745452,0.101,58910.0,58909.0,0.225864]
[1723672745655,0.1,58910.0,58909.0,0.225864]
[1723672748064,0.1,58910.0,58909.0,0.227864]
[1723672748664,0.101,58910.0,58909.0,0.232864]
[1723672748962,0.102,58910.0,58909.0,0.235864]
[1723672750060,0.102,58910.0,58909.0,0.745104]
[1723672750364,0.102,58910.0,58909.0,0.235864]
[1723672750565,0.102,58910.0,58909.0,0.745104]
[1723672751254,0.102,58910.0,58909.0,0.235864]
[1723672751455,0.102,58910.0,58909.0,0.095864]
[1723672752163,0.102,58910.0,58909.0,0.245864]
[1723672755061,0.102,58910.0,58909.0,0.328064]
[1723672757059,0.102,58910.0,58909.0,0.245864]
[1723672759263,0.186862,58910.0,58909.0,0.245864]
[1723672763371,0.186862,58910.0,58909.0,0.32867911]
[1723672764272,0.186862,58910.0,58909.0,0.41345668]
[1723672764865,0.102,58910.0,58909.0,0.41345668]
[1723672765667,0.102,58910.0,58909.0,0.32867911]
[1723672767667,0.102,58910.0,58909.0,0.83791911]
[1723672769168,0.102,58910.0,58909.0,0.93208213]
[1723672769476,0.102,58910.0,58909.0,0.83791911]
[1723672770972,0.102,58910.0,58909.0,0.92278311]
[1723672771369,0.102,58910.0,58909.0,1.01671122]
[1723672772070,0.102,58910.0,58909.0,0.839968]
[1723672772272,0.102,58910.0,58909.0,1.02610415]
[1723672773467,0.102,58910.0,58909.0,0.93222181]
[1723672774484,0.102,58910.0,58909.0,1.33222181]
[1723672775280,0.102,58910.0,58909.0,1.480072]
[1723672775481,0.102,58910.0,58909.0,1.48007199]
[1723672775975,0.002,58910.0,58909.0,1.48007199]
[1723672776181,0.00025468,58915.0,58914.0,0.084857]
[1723672776386,0.00025468,58915.0,58914.0,0.317057]
[1723672777581,0.00025468,58915.0,58914.0,0.319057]
[1723672778273,0.00025468,58915.0,58914.0,0.321057]
[1723672781579,0.00025468,58915.0,58914.0,0.405914]
[1723672787787,0.05060239,58920.0,58919.0,0.169698]
[1723672787987,0.05060239,58920.0,58919.0,0.391898]
[1723672787988,0.16060239,58920.0,58919.0,0.391898]
[1723672788184,0.16060239,58920.0,58919.0,0.901058]
[1723672788386,0.16060239,58920.0,58919.0,1.035458]
[1723672788680,0.16060239,58920.0,58919.0,1.9321267]
[1723672788985,0.06743932,58923.0,58922.0,0.16969]
[1723672789192,0.00025468,58925.0,58922.0,0.16969]
[1723672789193,0.00025468,58925.0,58924.0,0.169684]
[1723672789394,0.0839192,58927.0,58926.0,0.084839]
[1723672789688,0.0839192,58927.0,58926.0,0.411878]
[1723672791089,0.0929192,58927.0,58926.0,0.330678]
[1723672791283,0.0929192,58927.0,58926.0,0.412878]
[1723672791787,0.1029192,58927.0,58926.0,0.413878]
[1723672791987,0.1029192,58927.0,58926.0,0.331678]
[1723672792284,0.1029192,58927.0,58926.0,0.329039]
[1723672793488,0.03995021,58931.0,58930.0,0.084833]
[1723672793684,0.00025468,58932.0,58931.0,0.084832]
[1723672793884,0.10025468,58932.0,58931.0,0.244832]
[1723672795988,0.11425468,58932.0,58931.0,0.245832]
[1723672796189,0.12625468,58932.0,58931.0,0.246832]
[1723672800501,0.084762,58980.0,58941.0,0.084818]
[1723672800693,0.3708,58942.0,58941.0,0.337018]
[1723672801099,0.3708,58942.0,58941.0,0.254818]
[1723672801398,0.3708,58942.0,58941.0,0.337018]
[1723672801589,0.3608,58942.0,58941.0,0.334518]
[1723672802589,0.3608,58942.0,58941.0,0.252318]
[1723672802897,0.3608,58942.0,58941.0,0.17]
[1723672802898,1.529392,58942.0,58941.0,0.17]
[1723672803101,1.444576,58942.0,58941.0,0.001]
[1723672803404,1.444576,58942.0,58932.0,0.08442442]
[1723672803405,0.084829,58933.0,58932.0,0.08442442]
[1723672803695,0.194829,58933.0,58932.0,0.08442442]
[1723672803902,0.703869,58933.0,58932.0,0.08442442]
[1723672804101,1.103869,58933.0,58932.0,0.08442442]
[1723672804300,0.084832,58931.0,58930.0,0.05066883]
[1723672804500,0.247032,58931.0,58930.0,0.05066883]
[1723672804699,0.753612,58931.0,58930.0,0.05066883]
[1723672805000,0.084833,58930.0,58929.0,0.05066883]
[1723672805305,0.174833,58930.0,58929.0,0.05066883]
[1723672806602,0.18486781,58930.0,58929.0,0.007]
[1723672807204,0.18486781,58930.0,58929.0,0.05768089]
[1723672807600,0.18486781,58930.0,58929.0,0.014]
[1723672808207,0.18486781,58930.0,58929.0,0.01]
[1723672808804,0.18486781,58930.0,58926.0,0.0675398]
[1723672808805,0.084838,58927.0,58926.0,0.0675398]
[1723672809004,0.2053,58926.0,58906.0,0.14782867]
[1723672809209,0.530528,58909.0,58908.0,0.04523877]
[1723672809413,0.084874,58902.0,58901.0,0.13513435]
[1723672809910,0.24994617,58902.0,58901.0,0.06079049]
[1723672810203,0.24994617,58902.0,58896.0,0.00025468]
[1723672810204,0.084877,58900.0,58896.0,0.00025468]
[1723672810801,0.00019817,58902.0,58897.0,0.068]
[1723672811005,0.00019817,58902.0,58901.0,0.084875]
[1723672811401,0.00019817,58902.0,58901.0,0.244875]
[1723672811603,0.00025468,58907.0,58906.0,0.084868]
[1723672813314,0.00125468,58907.0,58906.0,0.090868]
[1723672813613,0.00125468,58907.0,58906.0,0.240868]
[1723672814617,0.00125468,58907.0,58906.0,0.247868]
[1723672815310,0.44351417,58908.0,58906.0,0.247868]
[1723672815513,0.44032298,58908.0,58907.0,0.084867]
[1723672815706,0.44032298,58908.0,58907.0,0.234867]
[1723672816606,0.44032298,58908.0,58907.0,0.239867]
[1723672817415,0.36105468,58913.0,58912.0,0.084859]
[1723672817715,0.00025468,58913.0,58912.0,0.244859]
[1723672818214,0.00025468,58913.0,58912.0,0.605659]
[1723672819817,0.084842,58924.0,58912.0,1.64634]
[1723672820005,0.3608,58927.0,58926.0,0.084839]
[1723672820212,0.3608,58927.0,58926.0,0.234839]
[1723672820409,0.3608,58934.0,58926.0,0.15]
[1723672820715,0.3608,58934.0,58933.0,0.084829]
[1723672820915,0.3608,58934.0,58933.0,0.234829]
[1723672822215,0.3608,58934.0,58933.0,0.235829]
[1723672822411,0.11755196,58966.0,58933.0,0.235829]
[1723672822412,0.084812,58945.0,58933.0,0.5118]
[1723672822617,0.084812,58945.0,58934.0,0.1646]
[1723672822618,0.184812,58945.0,58934.0,0.1646]
[1723672822814,0.184812,58945.0,58934.0,0.3146]
[1723672823315,0.184812,58945.0,58941.0,0.084817]
[1723672823523,0.184812,58945.0,58941.0,0.234817]
[1723672823713,0.084814,58944.0,58941.0,0.234817]
[1723672823919,0.184814,58944.0,58941.0,0.234817]
[1723672825006,0.184814,58944.0,58941.0,0.235817]
[1723672825813,0.184814,58944.0,58941.0,0.236817]
[1723672825814,0.191814,58944.0,58941.0,0.236817]
[1723672827217,0.091814,58944.0,58942.0,0.084816]
[1723672827614,0.091814,58944.0,58942.0,0.234816]
[1723672828617,0.091814,58944.0,58942.0,0.235816]
[1723672829319,0.084814,58944.0,58942.0,0.235816]
[1723672829519,0.091814,58944.0,58942.0,0.236816]
[1723672830019,0.091814,58944.0,58943.0,0.084815]
[1723672830222,0.201814,58944.0,58943.0,0.234815]
[1723672831210,0.201814,58944.0,58943.0,0.235815]
[1723672831909,0.286628,58944.0,58943.0,0.151]
[1723672832113,0.084839,58927.0,58925.0,0.0781]
[1723672832320,0.09,58927.0,58926.0,0.084839]
[1723672832512,0.09,58927.0,58926.0,0.224839]
[1723672832714,0.535638,58927.0,58926.0,0.14]
[1723672832913,0.4508,58927.0,58923.0,0.084843]
[1723672833115,0.084842,58924.0,58923.0,0.16]
[1723672833419,0.084848,58920.0,58919.0,0.08510268]
[1723672833626,0.164848,58920.0,58919.0,0.00025468]
[1723672833823,1.158856,58920.0,58919.0,0.00025468]
[1723672834324,1.243704,58920.0,58919.0,6.8e-07]
[1723672834724,1.25384578,58920.0,58919.0,0.00500068]
[1723672835916,1.25384578,58920.0,58919.0,6.8e-07]
[1723672836314,1.26184578,58920.0,58919.0,0.001]
[1723672837020,1.26184578,58920.0,58919.0,0.002]
[1723672838218,1.17699778,58920.0,58919.0,0.002]
[1723672839427,0.69214978,58920.0,58919.0,0.002]
[1723672839613,0.18298978,58920.0,58919.0,0.002]
[1723672840421,0.10298978,58920.0,58919.0,0.002]
[1723672842524,0.19298978,58920.0,58919.0,0.002]
[1723672844327,0.70214978,58920.0,58919.0,0.002]
[1723672845126,1.18699778,58920.0,58919.0,0.002]
[1723672846741,1.27184578,58920.0,58919.0,0.002]
[1723672847039,1.18699778,58920.0,58919.0,0.002]
[1723672848227,1.18699778,58920.0,58919.0,0.00084622]
[1723672849034,1.27184578,58920.0,58919.0,2.2e-07]
[1723672857754,0.084881,58897.0,58876.0,0.50868744]
[1723672858057,0.084884,58895.0,58894.0,0.169]
[1723672858261,0.194884,58895.0,58894.0,0.169]
[1723672858749,0.19502965,58895.0,58894.0,0.169]
[1723672860060,0.19602965,58895.0,58894.0,0.183]
[1723672860562,0.19702965,58895.0,58894.0,0.196]
[1723672860855,0.28191365,58895.0,58894.0,0.196]
[1723672861055,1.27619765,58895.0,58894.0,0.196]
[1723672861360,1.28628921,58895.0,58894.0,0.1111]
[1723672862056,1.28628921,58895.0,58889.0,0.00025468]
[1723672862057,0.169782,58890.0,58889.0,0.00025468]
[1723672862280,0.725473,58890.0,58889.0,0.00025468]
[1723672862560,0.725473,58890.0,58873.0,0.24956404]
[1723672862561,0.084914,58874.0,58873.0,0.24956404]
[1723672862750,0.44585965,58874.0,58873.0,0.24956404]
[1723672862959,0.54893414,58874.0,58873.0,0.24956404]
[1723672863356,0.54893414,58874.0,58873.0,0.165]
[1723672864157,0.54993414,58874.0,58873.0,0.178]
[1723672864559,0.54993414,58874.0,58873.0,0.013]
[1723672864560,1.54440814,58874.0,58873.0,0.013]
[1723672865059,0.63484814,58874.0,58873.0,0.013]
[1723672865253,1.54540814,58874.0,58873.0,1e-06]
[1723672865449,0.169842,58869.0,58868.0,0.00025468]
[1723672865654,0.169842,58869.0,58855.0,0.3608]
[1723672865655,0.084924,58867.0,58858.0,0.173]
[1723672865952,0.525721,58869.0,58858.0,0.173]
[1723672865953,0.37522157,58869.0,58858.0,0.173]
[1723672866158,0.00288568,58867.0,58866.0,0.24509437]
[1723672866348,0.00214565,58874.0,58866.0,0.52096837]
[1723672866552,0.03605319,58868.0,58867.0,0.084924]
[1723672866752,0.00214565,58874.0,58872.0,0.084917]